lending/lending_fUSD_20250210
["ID","MTS","AMOUNT","RATE_DAILY","PERIOD"]
[352659090,1739218250734,-500.0,0.00011232,2]
[352659091,1739218250743,-500.0,0.00011232,2]
[352659092,1739218250753,-500.0,0.00011232,2]
[352659093,1739218250764,-500.0,0.00011232,2]
[352659094,1739218250774,-500.0,0.00011232,2]
[352659095,1739218250783,-509.18029303,0.00011232,2]
[352659096,1739218250793,-500.0,0.00011232,2]
[352659097,1739218250802,-500.0,0.00011232,2]
[352659098,1739218250812,-601.0,0.00011232,2]
[352659099,1739218250823,-500.0,0.00011232,2]
[352659100,1739218250833,-677.37,0.00011232,2]
[352659101,1739218250844,-500.0,0.00011232,2]
[352659102,1739218250854,-500.0,0.00011232,2]
[352659103,1739218250863,-500.0,0.00011232,2]
[352659104,1739218250873,-740.86,0.00011232,2]
[352659105,1739218250883,-422.95583235,0.00011232,2]
[352659106,1739218251213,-77.04416765,0.00011232,2]
[352659107,1739218251223,-500.0,0.00011232,2]
[352659108,1739218251233,-500.0,0.00011232,2]
[352659109,1739218251244,-1042.42,0.00011232,2]
[352659110,1739218251254,-463.04042285,0.00011232,2]
[352659111,1739218251662,-374.94181456,0.00010958,2]
[352659112,1739218251674,-282.9,0.00010958,2]
[352659113,1739218251687,-194.89818544,0.00010958,2]
[352659114,1739218251697,-500.0,0.00010958,2]
[352659115,1739218251706,-516.75181456,0.00010958,2]
[352659116,1739218251717,-103.60338463,0.00010958,2]
[352659117,1739218251727,-852.74,0.00011095,2]
[352659118,1739218251737,-36.95957715,0.00011232,2]
[352659119,1739218251749,-500.0,0.00011232,2]
[352659120,1739218251758,-500.0,0.00011232,2]
[352659121,1739218251769,-500.0,0.00011232,2]
[352659122,1739218251779,-580.37,0.00011232,2]
[352659123,1739218251789,-500.0,0.00011232,2]
[352659124,1739218251798,-500.0,0.00011232,2]
[352659125,1739218251808,-500.0,0.00011232,2]
[352659126,1739218251817,-509.69,0.00011232,2]
[352659127,1739218251827,-656.51,0.00011232,2]
[352659128,1739218251836,-500.0,0.00011232,2]
[352659129,1739218251846,-500.0,0.00011232,2]
[352659130,1739218251856,-500.0,0.00011232,2]
[352659131,1739218251866,-1067.31,0.00011232,2]
[352659132,1739218251876,-500.0,0.00011232,2]
[352659133,1739218251886,-775.36,0.00011232,2]
[352659134,1739218251896,-500.0,0.00011232,2]
[352659135,1739218251906,-500.0,0.00011232,2]
[352659136,1739218251918,-500.0,0.00011232,2]
[352659137,1739218251932,-872.71,0.00011232,2]
[352659138,1739218251945,-500.0,0.00011232,2]
[352659139,1739218251955,-500.0,0.00011232,2]
[352659140,1739218251964,-500.0,0.00011232,2]
[352659141,1739218251974,-550.40062582,0.00011232,2]
[352659142,1739218251985,-500.0,0.00011232,2]
[352659143,1739218251996,-500.0,0.00011232,2]
[352659144,1739218252005,-525.96,0.00011232,2]
[352659145,1739218252016,-500.0,0.00011232,2]
[352659146,1739218252026,-500.0,0.00011232,2]
[352659147,1739218252037,-559.55,0.00011232,2]
[352659148,1739218252047,-500.0,0.00011232,2]
[352659149,1739218252056,-659.08,0.00011232,2]
[352659150,1739218252066,-814.76,0.00011232,2]
[352659151,1739218252076,-500.0,0.00011232,2]
[352659152,1739218252086,-500.0,0.00011232,2]
[352659153,1739218252096,-781.06,0.00011232,2]
[352659154,1739218252105,-500.0,0.00011232,2]
[352659155,1739218252115,-500.0,0.00011232,2]
[352659156,1739218252125,-500.0,0.00011232,2]
[352659157,1739218252135,-586.41,0.00011232,2]
[352659158,1739218252145,-500.0,0.00011232,2]
[352659159,1739218252155,-500.0,0.00011232,2]
[352659160,1739218252165,-500.0,0.00011232,2]
[352659161,1739218252175,-500.0,0.00011232,2]
[352659162,1739218252185,-394.68792874,0.00011232,2]
[352659163,1739218252199,-274.73003782,0.00011232,2]
[352659164,1739218252210,-89.09203344,0.00011232,2]
[352659165,1739218252219,-208.06796656,0.00011232,2]
[352659166,1739218252238,-291.93203344,0.00011232,2]
[352659167,1739218252249,-500.0,0.00011232,2]
[352659168,1739218252259,-509.04,0.00011232,2]
[352659169,1739218252269,-500.0,0.00011232,2]
[352659170,1739218252278,-500.0,0.00011232,2]
[352659171,1739218252287,-500.0,0.00011232,2]
[352659172,1739218252296,-500.0,0.00011232,2]
[352659173,1739218252307,-500.0,0.00011232,2]
[352659174,1739218252317,-500.0,0.00011232,2]
[352659175,1739218252327,-640.52,0.00011232,2]
[352659176,1739218252336,-500.0,0.00011232,2]
[352659177,1739218252346,-500.0,0.00011232,2]
[352659178,1739218252356,-500.0,0.00011232,2]
[352659179,1739218252365,-500.0,0.00011232,2]
[352659180,1739218252375,-523.75,0.00011232,2]
[352659181,1739218252385,-500.0,0.00011232,2]
[352659182,1739218252395,-753.2,0.00011232,2]
[352659183,1739218252404,-662.45,0.00011232,2]
[352659184,1739218252414,-500.0,0.00011232,2]
[352659185,1739218252423,-500.0,0.00011232,2]
[352659186,1739218252433,-500.0,0.00011232,2]
[352659187,1739218252443,-503.69106628,0.00011232,2]
[352659188,1739218252453,-593.93,0.00011232,2]
[352659189,1739218252462,-500.0,0.00011232,2]
[352659190,1739218252474,-621.93,0.00011232,2]
[352659191,1739218252484,-500.0,0.00011232,2]
[352659192,1739218252494,-500.0,0.00011232,2]
[352659193,1739218252504,-500.0,0.00011232,2]
[352659194,1739218252513,-500.0,0.00011232,2]
[352659195,1739218252523,-500.0,0.00011232,2]
[352659196,1739218252532,-500.0,0.00011232,2]
[352659197,1739218252542,-849.72,0.00011232,2]
[352659198,1739218252552,-500.0,0.00011232,2]
[352659199,1739218252562,-932.59,0.00011232,2]
[352659200,1739218252571,-500.0,0.00011232,2]
[352659201,1739218252581,-500.0,0.00011232,2]
[352659202,1739218252590,-500.0,0.00011232,2]
[352659203,1739218252600,-544.670482,0.00011232,2]
[352659204,1739218252668,-599.16,0.00011232,2]
[352659205,1739218252679,-500.0,0.00011232,2]
[352659206,1739218252688,-203.54,0.00011232,2]
[352659207,1739218252698,-500.0,0.00011232,2]
[352659208,1739218252708,-726.32,0.00011232,2]
[352659209,1739218252718,-500.0,0.00011232,2]
[352659210,1739218252727,-500.0,0.00011232,2]
[352659211,1739218252736,-500.0,0.00011232,2]
[352659212,1739218252746,-500.0,0.00011232,2]
[352659213,1739218252755,-689.34,0.00011232,2]
[352659214,1739218252764,-500.0,0.00011232,2]
[352659215,1739218252774,-628.44,0.00011232,2]
[352659216,1739218252783,-500.0,0.00011232,2]
[352659217,1739218252792,-500.0,0.00011232,2]
[352659218,1739218252802,-500.0,0.00011232,2]
[352659219,1739218252811,-500.0,0.00011232,2]
[352659220,1739218252821,-919.9,0.00011232,2]
[352659221,1739218252830,-500.0,0.00011232,2]
[352659222,1739218252840,-500.0,0.00011232,2]
[352659223,1739218252849,-510.746775,0.00011232,2]
[352659224,1739218252859,-500.0,0.00011232,2]
[352659225,1739218252868,-500.0,0.00011232,2]
[352659226,1739218252878,-500.0,0.00011232,2]
[352659227,1739218252887,-824.39,0.00011232,2]
[352659228,1739218252896,-500.0,0.00011232,2]
[352659229,1739218252906,-500.0,0.00011232,2]
[352659230,1739218252915,-500.0,0.00011232,2]
[352659231,1739218252925,-500.0,0.00011232,2]
[352659232,1739218252936,-403.73586186,0.00011232,2]
[352659233,1739218252946,-517.91,0.00011232,2]
[352659234,1739218252955,-500.0,0.00011232,2]
[352659235,1739218252965,-500.0,0.00011232,2]
[352659236,1739218252976,-500.0,0.00011232,2]
[352659237,1739218252985,-500.0,0.00011232,2]
[352659238,1739218252994,-500.0,0.00011232,2]
[352659239,1739218253004,-500.0,0.00011232,2]
[352659240,1739218253014,-500.0,0.00011232,2]
[352659241,1739218253023,-500.0,0.00011232,2]
[352659242,1739218253033,-500.0,0.00011232,2]
[352659243,1739218253043,-500.0,0.00011232,2]
[352659244,1739218253052,-500.0,0.00011232,2]
[352659245,1739218253061,-553.38,0.00011232,2]
[352659246,1739218253071,-747.39,0.00011232,2]
[352659247,1739218253079,-500.0,0.00011232,2]
[352659248,1739218253088,-848.24,0.00011232,2]
[352659249,1739218253098,-500.0,0.00011232,2]
[352659250,1739218253108,-846.2,0.00011232,2]
[352659251,1739218253118,-500.0,0.00011232,2]
[352659252,1739218253127,-500.0,0.00011232,2]
[352659253,1739218253138,-500.0,0.00011232,2]
[352659254,1739218253147,-500.0,0.00011232,2]
[352659255,1739218253156,-500.0,0.00011232,2]
[352659256,1739218253165,-500.0,0.00011232,2]
[352659257,1739218253175,-664.41,0.00011232,2]
[352659258,1739218253184,-500.0,0.00011232,2]
[352659259,1739218253194,-573.19,0.00011232,2]
[352659260,1739218253204,-500.0,0.00011232,2]
[352659261,1739218253214,-500.0,0.00011232,2]
[352659262,1739218253224,-800.31,0.00011232,2]
[352659263,1739218253234,-500.0,0.00011232,2]
[352659264,1739218253244,-500.0,0.00011232,2]
[352659265,1739218253254,-525.15,0.00011232,2]
[352659266,1739218253264,-887.65,0.00011232,2]
[352659267,1739218253273,-500.0,0.00011232,2]
[352659268,1739218253283,-541.24,0.00011232,2]
[352659269,1739218253292,-836.45,0.00011232,2]
[352659270,1739218253302,-662.71,0.00011232,2]
[352659271,1739218253312,-500.0,0.00011232,2]
[352659272,1739218253321,-500.0,0.00011232,2]
[352659273,1739218253331,-500.0,0.00011232,2]
[352659274,1739218253341,-819.07,0.00011232,2]
[352659275,1739218253351,-500.0,0.00011232,2]
[352659276,1739218253360,-776.78,0.00011232,2]
[352659277,1739218253370,-777.78,0.00011232,2]
[352659278,1739218253379,-698.46,0.00011232,2]
[352659279,1739218253389,-500.0,0.00011232,2]
[352659280,1739218253398,-993.18,0.00011232,2]
[352659281,1739218253407,-500.0,0.00011232,2]
[352659282,1739218253417,-802.6,0.00011232,2]
[352659283,1739218253427,-500.0,0.00011232,2]
[352659284,1739218253437,-500.0,0.00011232,2]
[352659285,1739218253447,-500.0,0.00011232,2]
[352659286,1739218253456,-500.0,0.00011232,2]
[352659287,1739218253466,-1084.78,0.00011232,2]
[352659288,1739218253476,-500.0,0.00011232,2]
[352659289,1739218253485,-500.0,0.00011232,2]
[352659290,1739218253495,-500.0,0.00011232,2]
[352659291,1739218253505,-500.0,0.00011232,2]
[352659292,1739218253514,-586.12,0.00011232,2]
[352659293,1739218253524,-500.0,0.00011232,2]
[352659294,1739218253534,-500.0,0.00011232,2]
[352659295,1739218253544,-500.0,0.00011232,2]
[352659296,1739218253555,-678.74,0.00011232,2]
[352659297,1739218253564,-500.0,0.00011232,2]
[352659298,1739218253574,-500.0,0.00011232,2]
[352659299,1739218253585,-500.0,0.00011232,2]
[352659300,1739218253594,-500.0,0.00011232,2]
[352659301,1739218253604,-500.0,0.00011232,2]
[352659302,1739218253614,-500.0,0.00011232,2]
[352659303,1739218253624,-509.74,0.00011232,2]
[352659304,1739218253634,-500.0,0.00011232,2]
[352659305,1739218253644,-1200.0,0.00011232,2]
[352659306,1739218253654,-1200.0,0.00011232,2]
[352659307,1739218253664,-1200.0,0.00011232,2]
[352659308,1739218253674,-500.0,0.00011232,2]
[352659309,1739218253683,-500.0,0.00011232,2]
[352659310,1739218253693,-500.0,0.00011232,2]
[352659311,1739218253702,-500.0,0.00011232,2]
[352659312,1739218253712,-500.0,0.00011232,2]
[352659313,1739218253721,-1215.13,0.00011232,2]
[352659314,1739218253731,-500.0,0.00011232,2]
[352659315,1739218253742,-500.0,0.00011232,2]
[352659316,1739218253753,-791.9,0.00011232,2]
[352659317,1739218253763,-500.0,0.00011232,2]
[352659318,1739218253773,-500.0,0.00011232,2]
[352659319,1739218253782,-500.0,0.00011232,2]
[352659320,1739218253792,-1204.79,0.00011232,2]
[352659321,1739218253801,-628.74,0.00011232,2]
[352659322,1739218253811,-500.0,0.00011232,2]
[352659323,1739218253822,-500.0,0.00011232,2]
[352659324,1739218253831,-500.0,0.00011232,2]
[352659325,1739218253842,-500.0,0.00011232,2]
[352659326,1739218253853,-500.0,0.00011232,2]
[352659327,1739218253863,-500.0,0.00011232,2]
[352659328,1739218253873,-500.0,0.00011232,2]
[352659329,1739218253883,-538.14,0.00011232,2]
[352659330,1739218253893,-571.56,0.00011232,2]
[352659331,1739218253903,-1123.4,0.00011232,2]
[352659332,1739218253913,-802.61,0.00011232,2]
[352659333,1739218253923,-500.0,0.00011232,2]
[352659334,1739218253936,-2082.86,0.00011232,2]
[352659335,1739218253947,-2552.06,0.00011232,2]
[352659336,1739218253957,-749.52,0.00011232,2]
[352659337,1739218253967,-500.0,0.00011232,2]
[352659338,1739218253976,-660.67,0.00011232,2]
[352659339,1739218253986,-500.0,0.00011232,2]
[352659340,1739218253996,-500.0,0.00011232,2]
[352659341,1739218254006,-500.0,0.00011232,2]
[352659342,1739218254017,-1044.53,0.00011232,2]
[352659343,1739218254028,-739.53,0.00011232,2]
[352659344,1739218254038,-1046.87,0.00011232,2]
[352659345,1739218254048,-500.0,0.00011232,2]
[352659346,1739218254057,-500.0,0.00011232,2]
[352659347,1739218254067,-500.0,0.00011232,2]
[352659348,1739218254077,-500.0,0.00011232,2]
[352659349,1739218254086,-500.0,0.00011232,2]
[352659350,1739218254096,-1030.93,0.00011232,2]
[352659351,1739218254106,-500.0,0.00011232,2]
[352659352,1739218254116,-578.99,0.00011232,2]
[352659353,1739218254126,-500.0,0.00011232,2]
[352659354,1739218254136,-500.0,0.00011232,2]
[352659355,1739218254147,-500.0,0.00011232,2]
[352659356,1739218254157,-2634.14,0.00011232,2]
[352659357,1739218254167,-500.0,0.00011232,2]
[352659358,1739218254176,-500.0,0.00011232,2]
[352659359,1739218254185,-500.0,0.00011232,2]
[352659360,1739218254194,-2641.91,0.00011232,2]
[352659361,1739218254203,-637.85,0.00011232,2]
[352659362,1739218254213,-542.54,0.00011232,2]
[352659363,1739218254222,-821.34,0.00011232,2]
[352659364,1739218254231,-500.0,0.00011232,2]
[352659365,1739218254242,-1399.36,0.00011232,2]
[352659366,1739218254251,-553.86,0.00011232,2]
[352659367,1739218254261,-513.91,0.00011232,2]
[352659368,1739218254271,-500.0,0.00011232,2]
[352659369,1739218254281,-1444.47,0.00011232,2]
[352659370,1739218254290,-555.89,0.00011232,2]
[352659371,1739218254300,-1106.32,0.00011232,2]
[352659372,1739218254309,-1773.67,0.00011232,2]
[352659373,1739218254319,-288.60526992,0.00011232,2]
[352659374,1739218254329,-500.0,0.00011232,2]
[352659375,1739218254338,-810.7,0.00011232,2]
[352659376,1739218254348,-1190.31,0.00011232,2]
[352659377,1739218254358,-2083.06,0.00011232,2]
[352659378,1739218254368,-500.0,0.00011232,2]
[352659379,1739218254377,-502.28,0.00011232,2]
[352659380,1739218254387,-500.0,0.00011232,2]
[352659381,1739218254396,-1429.51,0.00011232,2]
[352659382,1739218254406,-518.77,0.00011232,2]
[352659383,1739218254415,-1274.7,0.00011232,2]
[352659384,1739218254424,-2511.02,0.00011232,2]
[352659385,1739218254434,-581.89,0.00011232,2]
[352659386,1739218254443,-1526.51,0.00011232,2]
[352659387,1739218254453,-724.95,0.00011232,2]
[352659388,1739218254462,-1653.85,0.00011232,2]
[352659389,1739218254471,-750.0,0.00011232,2]
[352659390,1739218254481,-500.0,0.00011232,2]
[352659391,1739218254491,-934.28,0.00011232,2]
[352659392,1739218254500,-534.02,0.00011232,2]
[352659393,1739218254509,-500.0,0.00011232,2]
[352659394,1739218254519,-868.1,0.00011232,2]
[352659395,1739218254528,-1098.41,0.00011232,2]
[352659396,1739218254538,-4723.05,0.00011232,2]
[352659397,1739218254548,-622.98,0.00011232,2]
[352659398,1739218254557,-500.0,0.00011232,2]
[352659399,1739218254566,-1340.5,0.00011232,2]
[352659400,1739218254576,-401.24133202,0.00011232,2]
[352659401,1739218254586,-1422.56,0.00011232,2]
[352659402,1739218254595,-585.7,0.00011232,2]
[352659403,1739218254605,-981.1,0.00011232,2]
[352659404,1739218254615,-1634.95,0.00011232,2]
[352659405,1739218254624,-444.63,0.00011232,2]
[352659406,1739218254633,-1213.87,0.00011232,2]
[352659407,1739218254643,-894.42,0.00011232,2]
[352659408,1739218254652,-546.47,0.00011232,2]
[352659409,1739218254662,-1125.05,0.00011232,2]
[352659410,1739218254671,-974.68,0.00011232,2]
[352659411,1739218254681,-913.39,0.00011232,2]
[352659412,1739218254690,-1152.17,0.00011232,2]
[352659413,1739218254700,-500.0,0.00011232,2]
[352659414,1739218254710,-511.01,0.00011232,2]
[352659415,1739218254719,-3735.41,0.00011232,2]
[352659416,1739218254729,-606.83,0.00011232,2]
[352659417,1739218254740,-696.59,0.00011232,2]
[352659418,1739218254751,-2024.21,0.00011232,2]
[352659419,1739218254761,-1016.16,0.00011232,2]
[352659420,1739218254770,-1711.18,0.00011232,2]
[352659421,1739218254780,-805.13,0.00011232,2]
[352659422,1739218254789,-500.0,0.00011232,2]
[352659423,1739218254800,-500.0,0.00011232,2]
[352659424,1739218254810,-7205.66,0.00011232,2]
[352659425,1739218254819,-500.0,0.00011232,2]
[352659426,1739218254829,-590.09,0.00011232,2]
[352659427,1739218254839,-2821.65,0.00011232,2]
[352659428,1739218254850,-1315.5,0.00011232,2]
[352659429,1739218254859,-1866.34,0.00011232,2]
[352659430,1739218254869,-941.33,0.00011232,2]
[352659431,1739218254879,-500.0,0.00011232,2]
[352659432,1739218254889,-1149.76,0.00011232,2]
[352659433,1739218254899,-1019.02,0.00011232,2]
[352659434,1739218254910,-500.0,0.00011232,2]
[352659435,1739218254920,-528.74,0.00011232,2]
[352659436,1739218254938,-510.91,0.00011232,2]
[352659437,1739218254958,-1546.29,0.00011232,2]
[352659438,1739218254968,-511.32,0.00011232,2]
[352659439,1739218254978,-761.04,0.00011232,2]
[352659440,1739218254989,-500.0,0.00011232,2]
[352659441,1739218254999,-600.94,0.00011232,2]
[352659442,1739218255010,-3187.09,0.00011232,2]
[352659443,1739218255020,-500.0,0.00011232,2]
[352659444,1739218255031,-767.23,0.00011232,2]
[352659445,1739218255042,-601.79,0.00011232,2]
[352659446,1739218255052,-2753.81,0.00011232,2]
[352659447,1739218255062,-642.57,0.00011232,2]
[352659448,1739218255072,-768.83,0.00011232,2]
[352659449,1739218255082,-1782.41,0.00011232,2]
[352659450,1739218255091,-500.0,0.00011232,2]
[352659451,1739218255102,-1271.12707518,0.00011232,2]
[352659452,1739218255121,-1047.92292482,0.00011232,2]
[352659453,1739218255132,-500.0,0.00011232,2]
[352659454,1739218255147,-911.34,0.00011232,2]
[352659455,1739218255157,-691.79,0.00011232,2]
[352659456,1739218255167,-1180.39,0.00011232,2]
[352659457,1739218255178,-500.0,0.00011232,2]
[352659458,1739218255189,-500.0,0.00011232,2]
[352659459,1739218255199,-500.0,0.00011232,2]
[352659460,1739218255210,-1279.67,0.00011232,2]
[352659461,1739218255220,-1809.88,0.00011232,2]
[352659462,1739218255230,-1852.9,0.00011232,2]
[352659463,1739218255240,-223.731428,0.00011232,2]
[352659464,1739218255254,-890.248572,0.00011232,2]
[352659465,1739218255264,-500.0,0.00011232,2]
[352659466,1739218255273,-171.29879606,0.00011232,2]
[352659467,1739218255285,-650.59750741,0.00011232,2]
[352659468,1739218255297,-1032.22369653,0.00011232,2]
[352659469,1739218255307,-1976.46,0.00011232,2]
[352659470,1739218255316,-740.04,0.00011232,2]
[352659471,1739218255326,-587.53,0.00011232,2]
[352659472,1739218255335,-500.0,0.00011232,2]
[352659473,1739218255345,-1720.26,0.00011232,2]
[352659474,1739218255354,-3295.46,0.00011232,2]
[352659475,1739218255364,-1644.78,0.00011232,2]
[352659476,1739218255374,-500.0,0.00011232,2]
[352659477,1739218255383,-1254.74,0.00011232,2]
[352659478,1739218255392,-1047.4,0.00011232,2]
[352659479,1739218255402,-577.99,0.00011232,2]
[352659480,1739218255411,-500.0,0.00011232,2]
[352659481,1739218255420,-972.2,0.00011232,2]
[352659482,1739218255429,-447.27232926,0.00011232,2]
[352659483,1739218312034,-2301.5735,8.973e-05,2]
[352659485,1739218530304,-160.4537,8.836e-05,2]
[352659486,1739218706492,1084.39,8.475e-05,2]
[352659488,1739219067848,-1486.4417,8.836e-05,2]
[352659489,1739219067880,-2152.2476,8.836e-05,2]
[352659490,1739219067912,-3465.4807,8.836e-05,2]
[352661065,1739219432362,-500.0,9.719e-05,2]
[352661066,1739219432371,-150.0,9.999e-05,2]
[352661067,1739219432380,-500.0,9.999e-05,2]
[352661068,1739219432390,-500.0,9.999e-05,2]
[352661069,1739219432399,-201.48767511,9.999e-05,2]
[352661070,1739219432408,-7753.51232489,0.0001,2]
[352661071,1739219432433,-1251.06344126,0.0001,2]
[352661072,1739219432534,-12362.82412508,0.0001,2]
[352661073,1739219432545,-4287.90357461,0.0001,2]
[352661074,1739219432558,-542.23852826,0.0001,2]
[352661075,1739219432594,-6505.60278513,0.0001,2]
[352661076,1739219432606,-1008.495664,0.0001,2]
[352661077,1739219432617,-8519.34848858,0.0001,2]
[352661078,1739219432628,-10051.67517314,0.0001,2]
[352661079,1739219432660,-517141.33982879,0.0001,2]
[352661321,1739219438267,-1560.90268619,0.0001,2]
[352661322,1739219438278,-1131.86393258,0.0001,2]
[352661323,1739219438291,-5359.26357,0.0001,2]
[352661324,1739219438327,-20602.59013863,0.0001,2]
[352661325,1739219438339,-397.71288206,0.0001,2]
[352661326,1739219438350,-325.75223864,0.0001,2]
[352661327,1739219438361,-1466.06623931,0.0001,2]
[352661328,1739219438375,-614.1916537,0.0001,2]
[352661329,1739219438394,-46922.07118096,0.0001,2]
[352661330,1739219438449,-6297.02998929,0.0001,2]
[352661331,1739219438460,-5853.38940005,0.0001,2]
[352661332,1739219438507,-19300.74953765,0.0001,2]
[352661359,1739219440262,-39511.40346015,0.0001,2]
[352661360,1739219440322,-1009.05393255,0.0001,2]
[352661361,1739219440334,-468.705,0.0001,2]
[352661362,1739219442104,-430.02249998,0.0001,2]
[352661363,1739219442116,-2450.16000001,0.0001,2]
[352661364,1739219442127,-308.56148474,0.0001,2]
[352661365,1739219442206,-10610.6,0.0001,2]
[352661366,1739219442217,-258.95046084,0.0001,2]
[352661367,1739219442314,-527.21886762,0.0001,2]
[352661368,1739219442326,-674207.39504489,0.0001,2]
[352661369,1739219442337,-9659.90445415,0.0001,2]
[352661370,1739219442346,-153.38769045,0.0001,2]
[352661371,1739219442356,-2843.91611724,0.0001,2]
[352661372,1739219442365,-52592.83006938,0.0001,2]
[352661373,1739219442428,-34940.26146743,0.0001,2]
[352661395,1739219443340,-480.630005,0.0001,2]
[352661397,1739219443353,-32854.47,0.0001,2]
[352661410,1739219443686,-405.68854478,0.0001,2]
[352661411,1739219443698,-972.57909697,0.0001,2]
[352661412,1739219443709,-765.572688,0.0001,2]
[352661434,1739219446440,-8859.39332455,0.0001,2]
[352661435,1739219446453,-501.16163923,0.0001,2]
[352661436,1739219446606,-1089.37077311,0.0001,2]
[352661470,1739220004167,1118.81,8.219e-05,2]
[352661491,1739220631465,-244.29,9.789e-05,2]
[352661492,1739220631475,-150.0,9.793e-05,2]
[352661493,1739220631484,-250.0,9.798e-05,2]
[352661494,1739220631493,-150.0,9.883e-05,2]
[352661495,1739220631503,-302.415504,9.902e-05,2]
[352661496,1739220631681,-365.66549,9.902e-05,2]
[352661497,1739220631696,-331.919006,9.902e-05,2]
[352661498,1739220631706,-34.2104408,9.956e-05,2]
[352661499,1739220631737,-610.4395592,9.956e-05,2]
[352661500,1739220631746,-224.98,9.956e-05,2]
[352661501,1739220631755,-327.48,9.956e-05,2]
[352661502,1739220631764,-150.0,9.973e-05,2]
[352661503,1739220631776,-563.68614634,9.999e-05,2]
[352661504,1739220631786,-150.0,9.999e-05,2]
[352661505,1739220631796,-500.0,9.999e-05,2]
[352661506,1739220631804,-500.0,9.999e-05,2]
[352661507,1739220631814,-482.9860934,9.999e-05,2]
[352661508,1739220631823,-404.17697157,9.999e-05,2]
[352661509,1739220631832,-505.32190414,9.999e-05,2]
[352661510,1739220631841,-98667.42150913,0.0001,2]
[352661511,1739220631864,-29937.15892068,0.0001,2]
[352661512,1739220631875,-340.97585375,0.0001,2]
[352661513,1739220631885,-6173.39,0.0001,2]
[352661514,1739220631896,-117539.95855398,0.0001,2]
[352661515,1739220631905,-365.77525998,0.0001,2]
[352661516,1739220631915,-154.16148571,0.0001,2]
[352661517,1739220631924,-742.55283125,0.0001,2]
[352661518,1739220631934,-210.24513087,0.0001,2]
[352661519,1739220631943,-141120.57287688,0.0001,2]
[352661520,1739220631952,-500.0,0.0001,2]
[352661521,1739220631960,-4000.0,0.0001,2]
[352661522,1739220631970,-162.87,0.00010051,2]
[352661523,1739220631979,-150.0,0.00010085,2]
[352661524,1739220631988,-187.70470995,0.00010085,2]
[352661525,1739220631997,-281.76678614,0.00010085,2]
[352661526,1739220632008,-439.61,0.000101,2]
[352661528,1739220632019,-775.08,0.000101,2]
[352661530,1739220632031,-325.61,0.00010137,2]
[352661532,1739220632044,-284.64,0.00010137,2]
[352661534,1739220632055,-181.86,0.00010137,2]
[352661537,1739220632067,-346.2314276,0.00010237,2]
[352661539,1739220632077,-4213.1716633,0.00010358,2]
[352661541,1739220632087,-166.67,0.00010365,2]
[352661543,1739220632098,-5554.0,0.000104,5]
[352661545,1739220632109,-1000.0,0.00010422,2]
[352661547,1739220632121,-1118.81,0.00010474,2]
[352661550,1739220632131,-1400.0,0.000105,3]
[352661552,1739220632142,-346.2314276,0.00010562,2]
[352661554,1739220632153,-2900.0,0.000106,3]
[352661556,1739220632165,-166.74,0.00010646,2]